Cogmind - Beta 10.2 @@@ ROGUE MODE // 2020.11.03 @ 20:38:20 Player: hunvagy2 Result: Destroyed by S-27 Virus with Autogun Performance ------------- Evolutions (3) 1500 Regions Visited (5) 1000 Robots Destroyed (50) 250 Value Destroyed (1784) 1784 Prototype IDs (3) 60 Alien Tech Used (0) 0 Bonus (-17) -17 TOTAL SCORE: 4577 Bonus ------- Friendly Fire -17 Cogmind --------- Core Integrity 0/700 Matter 107/300 Energy 100/100 System Corruption 6% Temperature Cool (0) Movement Core (550) Ox10 Location -7/Factory Parts ------- > --- POWER (3) -------- (None) > --- PROPULSION (3) --- (None) > --- UTILITY (3) ------ Large Storage Unit Large Storage Unit > --- WEAPON (4) ------- (None) > --- INVENTORY (16) --- Ion Engine Light Ion Engine Carbon-fiber Leg Heat Sink Heat Sink Improved Heat Sink ECM Suite Hacking Suite Minigun Minigun Shock Bomb Launcher Peak State ------------ > --- POWER ------------ Improved Ion Engine Light Nuclear Core Micro Nuclear Core > --- PROPULSION ------- Advanced Treads Advanced Treads Advanced Treads > --- UTILITY ---------- Improved Heat Sink Large Storage Unit Large Storage Unit > --- WEAPON ----------- Minigun Minigun Minigun Shock Bomb Launcher > --- INVENTORY -------- Ion Engine Light Ion Engine Nuclear Core Carbon-fiber Leg Heat Sink Heat Sink Improved Heat Sink ECM Suite Hacking Suite EM Pulse Gun Beam Cannon Beam Cannon Minigun Minigun Minigun Grenade Launcher [Rating: 38] Favorites ----------- Power Ion Engine Engine Ion Engine Power Core Light Nuclear Core Propulsion Advanced Treads Treads Advanced Treads Leg Aluminum Leg Utility Large Storage Unit Device Improved Heat Sink Storage Large Storage Unit Weapon Minigun Energy Gun Medium Laser Energy Cannon Particle Cannon Ballistic Gun Minigun Launcher Shock Bomb Launcher Build | -11 -10 -9 -9 -8 -7 ------- Run | Scr Mat Mat Min Mat Fac Slots Evolved 6 | . . 2 . 2 2 Power 2 | . . 1 . . 1 Propulsion 1 | . . . . . 1 Utility 1 | . . . . 1 . Weapon 2 | . . 1 . 1 . Parts Attached 43 | 6 2 9 1 9 16 Power 11 | 1 1 2 1 1 5 Engine 6 | 1 1 2 1 . 1 Core 5 | . . . . 1 4 Reactor . | . . . . . . Propulsion 7 | 2 . 3 . . 2 Treads 5 | . . 3 . . 2 Leg 2 | 2 . . . . . Wheel . | . . . . . . Hover . | . . . . . . Flight . | . . . . . . Utility 5 | 1 1 1 . 1 1 Device 2 | . . . . 1 1 Storage 3 | 1 1 1 . . . Processor . | . . . . . . Hackware . | . . . . . . Protection . | . . . . . . Artifact . | . . . . . . Weapon 20 | 2 . 3 . 7 8 Energy Gun 5 | 2 . . . 1 2 Energy Cannon 5 | . . . . 3 2 Ballistic Gun 8 | . . 3 . 3 2 Ballistic Cannon . | . . . . . . Launcher 2 | . . . . . 2 Special Weapon . | . . . . . . Impact Weapon . | . . . . . . Slashing Weapon . | . . . . . . Piercing Weapon . | . . . . . . Special Melee Weapon . | . . . . . . Unidentified Prototypes 1 | . . . . . 1 Parts Lost 18 | . . 3 . 1 14 Power 3 | . . . . . 3 Propulsion 3 | . . 1 . . 2 Utility 1 | . . . . . 1 Weapon 11 | . . 2 . 1 8 Highest Loss Streak 7 | . . 2 . 1 7 Average Slot Usage (%) 92 | . 97 96 100 99 86 Engine 11 | . 14 22 22 10 5 Core 7 | . . . . 7 12 Treads 16 | . . 18 22 18 16 Leg 2 | . 28 1 . . . Device 4 | . . . . 9 6 Storage 18 | . 26 22 22 18 15 Energy Gun 5 | . 28 11 . 2 2 Energy Cannon 3 | . . . . 16 1 Ballistic Gun 19 | . . 20 33 16 19 Launcher 1 | . . . . . 2 Naked Turns . | . . . . . . Heaviest Build 68 | 10 28 51 51 56 68 Greatest Support 66 | 20 20 44 44 44 66 Greatest Overweight (x) 14 | . 1 2 1 1 14 Average Overweight (x) . | . . . 1 1 1 Largest Inventory Capacity 16 | 6 12 16 16 16 16 Average Capacity 15 | 5 11 14 16 16 16 Most Carried 16 | 4 7 13 14 14 16 Average Carried 12 | 1 6 10 13 12 13 Final Capacity 16 | 6 12 16 16 16 16 Final Carried 13 | 2 7 13 13 13 11 Class Distribution -------------------- 69% | Gunner 15% | Scavenger-Gunner 14% | Mutant Dominant Class ---------------- Mutant | -10/Materials Gunner | -9/Materials Gunner | -9/Mines Gunner | -8/Materials Gunner | -7/Factory Resources | -11 -10 -9 -9 -8 -7 ----------- Run | Scr Mat Mat Min Mat Fac Matter Collected 1510 | 186 88 333 93 296 514 Remotely . | . . . . . . Salvage Created 1946 | . 88 521 126 269 942 Parts 117 | . 1 35 7 17 57 Haulers Intercepted . | . . . . . . Recyclers Shooed 2 | . . . . . 2 Parts Field Recycled . | . . . . . . Retrieved Matter . | . . . . . . Parts Self-Destructed . | . . . . . . Prevented . | . . . . . . Kills | -11 -10 -9 -9 -8 -7 ------- Run | Scr Mat Mat Min Mat Fac Combat Hostiles Destroyed 40 | . 2 11 3 5 19 Guns 31 | . 2 11 3 3 12 Cannons 4 | . . . . 2 2 AOE 5 | . . . . . 5 Classes Destroyed 11 | . 1 3 1 1 5 Worker 3 | . . . . 1 2 Builder 5 | . . 1 . . 4 Operator 1 | . . 1 . . . Watcher 1 | . . . . . 1 Swarmer 4 | . . . . . 4 Grunt 27 | . 2 9 2 4 10 Brawler 2 | . . . . . 2 Duelist 1 | . . . 1 . . Sentry 4 | . . 2 . 1 1 Hunter 1 | . . . . . 1 Programmer 1 | . . . . . 1 Best Kill Streak 6 | . 1 5 5 2 6 Combat Bots Only 5 | . 1 3 5 2 4 Max Kills in Single Turn 3 | . 1 1 1 1 3 Gunslinging . | . . . . . . Exploded 2 | . . . . . 2 Melee . | . . . . . . Uniques/NPCs Destroyed . | . . . . . . Combat | -11 -10 -9 -9 -8 -7 -------- Run | Scr Mat Mat Min Mat Fac Damage Taken 3413 | . 106 360 204 344 2399 Core 855 | . 11 33 12 88 711 Absorbed by Shields . | . . . . . . Core Remaining (%) 91 | 100 95 . 88 84 . Volleys Fired 127 | . 17 26 9 26 49 Largest 4 | . 2 3 3 4 4 Hottest 208 | . 90 110 70 208 183 Shots Fired 400 | . 34 71 27 102 166 Gun 341 | . 34 71 27 72 137 Cannon 37 | . . . . 30 7 Launcher 22 | . . . . . 22 Special . | . . . . . . Kinetic 269 | . . 60 27 63 119 Thermal 108 | . 34 11 . 39 24 Explosive 8 | . . . . . 8 Electromagnetic 15 | . . . . . 15 Robot Hit Streak 17 | . 5 17 7 11 12 Robot Miss Streak 6 | . 3 3 2 5 6 Penetration Max . | . . . . . . Secondary Targets 4 | . . 2 2 . . Max Gunslinging Chain 1 | . . 1 1 . . Shots Hit Robots 247 | . 19 43 18 65 102 Core Hits 108 | . 4 22 7 18 57 Critical Hits . | . . . . . . Critical Kills . | . . . . . . Critical Parts Destroyed . | . . . . . . Melee Attacks . | . . . . . . Impact . | . . . . . . Slashing . | . . . . . . Piercing . | . . . . . . Sneak Attacks . | . . . . . . Combat Hostiles . | . . . . . . Follow-up Attacks . | . . . . . . Damage Inflicted 4065 | . 162 547 203 810 2343 Guns 2754 | . 162 547 203 561 1281 Cannons 348 | . . . . 249 99 Explosions 942 | . . . . . 942 Melee . | . . . . . . Ramming 21 | . . . . . 21 Kinetic 2208 | . . 487 203 482 1036 Thermal 954 | . 162 60 . 328 404 Explosive 248 | . . . . . 248 Electromagnetic 634 | . . . . . 634 Impact . | . . . . . . Slashing . | . . . . . . Piercing . | . . . . . . Highest Corruption 6 | . 2 . . . 6 Average Corruption 1 | . 2 . . . 1 Corruption Purged . | . . . . . . Effects 7 | . . . . . 7 Message Errors 2 | . . . . . 2 Energy Discharges 1 | . . . . . 1 Data Loss (minor) 3 | . . . . . 3 Targeting Errors 1 | . . . . . 1 Overload Shots . | . . . . . . Overflow Damage 8 | . . . . . 8 Projectiles . | . . . . . . Explosions 8 | . . . . . 8 Melee . | . . . . . . Knockbacks . | . . . . . . Impact . | . . . . . . Kinetic . | . . . . . . Secondary . | . . . . . . Self-Inflicted Damage 197 | . . . . . 197 Shots 9 | . . . . . 9 Rammed 3 | . . . . . 3 Targets Rammed 3 | . . . . . 3 Kicked . | . . . . . . Crushed . | . . . . . . Highest Temperature 474 | . 392 364 226 402 474 Average Temperature 132 | . 175 117 110 124 133 Received Heat Transfer 915 | . 60 177 42 153 483 Effects 9 | . 1 2 . 2 4 Shutdowns 2 | . . . . . 2 Energy Bleed 1 | . . . . 1 . Interference 1 | . . . . . 1 Matter Decay 2 | . 1 1 . . . Short Circuit 1 | . . . . . 1 Damage (minor) 2 | . . 1 . 1 . Siege Activations . | . . . . . . Robots Corrupted . | . . . . . . Combat Hostiles . | . . . . . . Parts Fried 1 | . . . . . 1 Impact Corruptions . | . . . . . . Robots Melted . | . . . . . . Combat Hostiles . | . . . . . . Parts Melted 1 | . . . . 1 . Heat Transferred 1828 | . 458 161 . 666 543 Parts Sabotaged . | . . . . . . Parts Stolen . | . . . . . . Parts Stripped . | . . . . . . Power Chain Reactions 1 | . . . . . 1 Missiles Intercepted . | . . . . . . Alert | -11 -10 -9 -9 -8 -7 ------- Run | Scr Mat Mat Min Mat Fac Peak Influence 321 | . 72 284 180 203 321 Initial 110 | . . 29 110 . . Average 134 | . 35 107 177 92 167 Maximum Alert Level 1 | . . 1 . 1 1 Low Security (%) 73 | 100 100 77 100 92 53 Level 1 26 | . . 22 . 7 46 Level 2 . | . . . . . . Level 3 . | . . . . . . Level 4 . | . . . . . . Level 5 . | . . . . . . High Security . | . . . . . . Max Security . | . . . . . . Squads Dispatched 14 | . 2 2 . 3 7 Investigation 5 | . . 2 . 2 1 Extermination 2 | . . . . . 2 Reinforcement 7 | . 2 . . 1 4 Assault . | . . . . . . Garrison . | . . . . . . Intercept . | . . . . . . Construction Impeded 2 | . . . . . 2 Haulers Reinforced . | . . . . . . Stealth | -11 -10 -9 -9 -8 -7 --------- Run | Scr Mat Mat Min Mat Fac Distress Signals . | . . . . . . Communications Jammed . | . . . . . . Distress Signals . | . . . . . . Times Spotted 69 | . 5 15 3 15 31 Peak Tracking Total 5 | . 1 4 2 3 5 Tactical Retreats . | . . . . . . Traps | -11 -10 -9 -9 -8 -7 ------- Run | Scr Mat Mat Min Mat Fac Traps Triggered 4 | . 1 1 . 1 1 Indirectly . | . . . . . . Trap Hack Attempts . | . . . . . . Triggered . | . . . . . . Disarmed . | . . . . . . Reprogrammed . | . . . . . . Reused . | . . . . . . Traps Extracted . | . . . . . . Installed . | . . . . . . Triggered . | . . . . . . Machines | -11 -10 -9 -9 -8 -7 ---------- Run | Scr Mat Mat Min Mat Fac Machines Disabled 6 | . . . . 2 4 Max in Single Turn 1 | . . . . 1 1 Machines Sabotaged . | . . . . . . Garrisons Compromised . | . . . . . . Overloaded Fab Kills . | . . . . . . Fab Network Shutdowns . | . . . . . . Hacking | -11 -10 -9 -9 -8 -7 --------- Run | Scr Mat Mat Min Mat Fac Machines Accessed 10 | . 2 1 1 3 3 Terminals 6 | . 2 1 . 2 1 Fabricators . | . . . . . . Repair Stations 2 | . . . . . 2 Recycling Units . | . . . . . . Scanalyzers 1 | . . . . 1 . Garrison Access . | . . . . . . Total Hacks 27 | . 5 4 1 9 8 Successful 19 | . 4 1 1 6 7 Failed 8 | . 1 3 . 3 1 Catastrophic . | . . . . . . Database Lockouts . | . . . . . . Manual . | . . . . . . Terminals 16 | . 5 4 . 4 3 Fabricators . | . . . . . . Repair Stations 5 | . . . . . 5 Recycling Units . | . . . . . . Scanalyzers 5 | . . . . 5 . Garrison Access . | . . . . . . Terminal Hacks 11 | . 4 1 1 2 3 Record 2 | . 1 1 . . . Robot Analysis 1 | . 1 . . . . Prototype ID Bank 1 | . . . . 1 . Open Door 1 | . . . 1 . . Alert Level 1 | . 1 . . . . Unreport Threat 1 | . . . . . 1 Dispatch Records 1 | . . . . . 1 Recall Extermination 1 | . . . . . 1 Zone Layout 2 | . 1 . . 1 . Fabricator Hacks . | . . . . . . Repair Station Hacks 4 | . . . . . 4 Scan Component 2 | . . . . . 2 Repair 2 | . . . . . 2 Recycling Unit Hacks . | . . . . . . Scanalyzer 4 | . . . . 4 . Insert Component 2 | . . . . 2 . Analyze 2 | . . . . 2 . Garrison Access Hacks . | . . . . . . Unauthorized Hacks . | . . . . . . Terminals . | . . . . . . Fabricators . | . . . . . . Repair Stations . | . . . . . . Recycling Units . | . . . . . . Scanalyzers . | . . . . . . Garrison Access . | . . . . . . Data Cores Recovered 1 | . . 1 . . . Used . | . . . . . . Hacking Detections 7 | . 2 1 . 2 2 Full Trace Events 3 | . . 1 . 2 . Feedback Events . | . . . . . . Feedback Blocked . | . . . . . . Robot Schematics Acquired . | . . . . . . Robots Built . | . . . . . . Matter . | . . . . . . Time . | . . . . . . Total Robot Build Rating . | . . . . . . Part Schematics Acquired 2 | . . . . 2 . Parts Built . | . . . . . . Matter . | . . . . . . Time . | . . . . . . Total Part Build Rating . | . . . . . . Parts Repaired 2 | . . . . . 2 Time 76 | . . . . . 76 Parts Recycled . | . . . . . . Recycled Matter . | . . . . . . Retrieved Matter . | . . . . . . Retrieved Components . | . . . . . . Parts Scanalyzed 2 | . . . . 2 . Part Schematics Acquired 2 | . . . . 2 . Parts Damaged . | . . . . . . Bothacking | -11 -10 -9 -9 -8 -7 ------------ Run | Scr Mat Mat Min Mat Fac Used RIF Installer . | . . . . . . Robots Hacked . | . . . . . . Non-combat . | . . . . . . Combat . | . . . . . . Robot Hacks Applied . | . . . . . . Relay Couplers Released . | . . . . . . Robots Rewired . | . . . . . . Allies Hacked . | . . . . . . Hacks Repelled . | . . . . . . Allies | -11 -10 -9 -9 -8 -7 -------- Run | Scr Mat Mat Min Mat Fac Total Allies . | . . . . . . Largest Group . | . . . . . . Highest-Rated Group . | . . . . . . Highest-Rated Ally . | . . . . . . Total Orders . | . . . . . . Ally Attacks . | . . . . . . Total Damage . | . . . . . . Kills . | . . . . . . Allies Corrupted . | . . . . . . Allies Melted . | . . . . . . Intel | -11 -10 -9 -9 -8 -7 ------- Run | Scr Mat Mat Min Mat Fac Robot Analysis Total 1 | . 1 . . . . Derelict Logs Recovered 2 | . . . 2 . . Drone Launches . | . . . . . . Drone Recoveries . | . . . . . . Exploration | -11 -10 -9 -9 -8 -7 ------------- Run | Scr Mat Mat Min Mat Fac Turns Passed 2844 | 89 223 387 400 403 1342 Spaces Moved 1399 | 71 113 180 227 188 620 Core 22 | 14 . . . . 8 Treads 1193 | . . 166 227 188 612 Legs 184 | 57 113 14 . . . Wheels . | . . . . . . Hover . | . . . . . . Flight . | . . . . . . Fastest Speed 50 | 50 120 145 165 165 145 Average Speed 162 | 106 145 153 165 165 172 Slowest Speed 750 | 120 150 185 165 165 750 Overloaded Moves . | . . . . . . Propulsion Burnouts . | . . . . . . Robots Hopped 1 | . . . . . 1 Cave-ins Triggered . | . . . . . . Exploration Rate (%) 25 | 5 18 19 72 20 18 Regions Visited 5 Branch Regions 1 Pre-discovered Areas . | . . . . . . Known Exits Taken . | . . . . . . Unknown Exits Taken 5 | 1 1 1 1 1 . Scrap Searched 1 | . . . 1 . . Spaces Dug . | . . . . . . Terrain Destroyed 49 | . . . . . 49 Melee . | . . . . . . Projectile . | . . . . . . AOE 49 | . . . . . 49 Terrain Rammed . | . . . . . . Walls Destroyed . | . . . . . . Machines Disabled . | . . . . . . Actions | -11 -10 -9 -9 -8 -7 --------- Run | Scr Mat Mat Min Mat Fac Total 1737 | 84 137 250 238 227 801 Wait 113 | . . 17 . . 96 Move 1392 | 70 112 179 226 187 618 Hop 1 | . . . . . 1 Pick Up 47 | 8 6 15 1 4 13 Fast Attach . | . . . . . . Attach 26 | 6 1 6 . 3 10 Detach . | . . . . . . Swap 17 | . 1 3 1 6 6 Drop 11 | . . 4 1 1 5 Fire 127 | . 17 26 9 26 49 Melee . | . . . . . . Ram . | . . . . . . Kick . | . . . . . . Crush 3 | . . . . . 3 Escape Stasis . | . . . . . . Rewire . | . . . . . . Trap . | . . . . . . Miscellaneous . | . . . . . . Route ------- -11/Scrapyard -10/Materials -9/Materials (discovered 2 exits: *Min / [*Sto]) -9/Mines -8/Materials -7/Factory (discovered 1 exit: [*Fac]) History --------- Turn | Location | Event 12 | -11/Scrapyard | Discovered new exit (range 15) 90 | -11/Scrapyard | Entered Materials 295 | -10/Materials | Discovered new exit (range 10) 313 | -10/Materials | Entered another Materials area 313 | -9/Materials | Evolved 2 slots: Power x1, Weapon x1 524 | -9/Materials | Discovered new exit (range 13) 651 | -9/Materials | Discovered new exit (range 12) 700 | -9/Materials | Entered Mines 702 | -9/Mines | Met a Derelict bent on vengeance 829 | -9/Mines | Learned Materials emergency access door positions 843 | -9/Mines | Build established: Gunner 914 | -9/Mines | Learned Materials stockpile data 948 | -9/Mines | Met a Derelict who couldn't figure out how to use a Trap Extractor 1085 | -9/Mines | Discovered new exit (range 6) 1100 | -9/Mines | Entered Materials 1100 | -8/Materials | Evolved 2 slots: Utility x1, Weapon x1 1345 | -8/Materials | Discovered new exit (range 17) 1503 | -8/Materials | Entered Factory 1503 | -7/Factory | Evolved 2 slots: Power x1, Propulsion x1 1555 | -7/Factory | Repaired Lgt. Nuclear Core 1598 | -7/Factory | Repaired Adv. Treads 1658 | -7/Factory | Build established: Scavenger-Gunner 2117 | -7/Factory | Build established: Gunner 2591 | -7/Factory | Lost 3 parts (1p2w) 2758 | -7/Factory | Discovered new exit (range 11) 2812 | -7/Factory | Lost 7 parts (1p1n5w) 2829 | -7/Factory | Core integrity fell below 50% 2840 | -7/Factory | Core integrity fell below 20% 2845 | -7/Factory | Destroyed by S-27 Virus with Autogun Last Messages --------------- Nuclear Reactor explodes. Beam Cannon destroyed. Adv. Treads destroyed. EM Pulse Gun destroyed. The unstable cave ceiling collapses. K-01 Serf collects debris. The unstable cave ceiling collapses. K-01 Serf collects debris. The unstable cave ceiling collapses. U-05 Engineer builds a Wall. Nuclear Core destroyed. Beam Cannon destroyed. System corrupted: Energy discharge (-32). The unstable cave ceiling collapses. K-01 Serf collects debris. The unstable cave ceiling collapses. U-05 Engineer lays Concrete. The unstable cave ceiling collapses. Imp. Heat Sink destroyed. K-01 Serf collects debris. Map ----- +----------------------------------------------------+ | | | ?????????????????????????????????????????????????? | | ?????????????????????????????????????????????????? | | ?????????????????????????????????????????????????? | | ?????????????????????????????????????????????????? | | ?????????????????????????????????????????????????? | | ?????????????????????????????????????????????????? | | ?????????????????????????????????????????????????? | | ?????????????????????????????????????????????????? | | ?????????????????????????????????????????????????? | | ?????????????????????????? ??????????????????????? | | ?????????????????????????? ??????????????????????? | | ?????????????????????????? ??????????????????????? | | ?????????????????????????? ??????????????????????? | | ?????????????????????????? ??????????????????????? | | ?????????????????????????? ??????????????????????? | | ??????????????????######?? ???????#??????????????? | | ??????????????????? ?# ##???? #??????????????? | | ??????????????????? ## # #### ###????????????? | | ????????????????? ## #????????????? | | ?????????????????? """ ! # T #????????????? | | ????????????????# """"" < "" +????????????? | | ????????????????# """"" % # ?????????????? | | ????????????????? # # ?????????????? | | ????????????????# """ s#ss# ## #????????????## | | ??????????????????""""" @s ## #????????????# | | ??????????????????""""" ##p# ### ###########??# | | ????????????????? ???# ##??# # #??# | | ????????????????####??#### ###?# # """ """ #??# | | ?????????????????????## ### # """ """ #??# | | ????????????????????## ## ## # """ """ #??# | | ????????????????????# # ## # + #??# | | ????????????????????# # ! !!! #??# | | ????????????????????## # # * !!! ##### | | ????????????????????# # # | !! + | | ????????????????????## ############### | | ?????????????????????# + +????????? ! | | ?????????????????????# """ # #????????? " | | ?????????????????????## """ # #????????# " | | ??????????????????????# """ # #????????# " | | ??????????????????????# # #????????# | | ??????????????????????########## #????????# " | | ???????????????????????????????# #????????# " | | ???????????????????????????????# +????????# = " | | ???????????????????????????????# ###????????# | | ???????????????????????????????? ????????????#??## | | ???????????????????????????????? ????????????????? | | ???????????????????????????????? ????????????????? | | ???????????????????????????????? ????????????????? | | ???????????????????????????????? ????????????????? | +----------------------------------------------------+ Best States ------------- Heat Dissipation 48 Energy Generation 33 Energy Capacity 475 Matter Stores 300 Matter Capacity 300 Sight Range 16 Terrain Scan Density 10 Evasion (%) 50 Recoil Reduction 3 Item Schematics ----------------- ECM Suite | -8/Materials | Scanalyzed Beam Cannon | -8/Materials | Scanalyzed Robot Schematics ------------------ None Fabricated ------------ Nothing Alien Tech Used ----------------- None Achievements -------------- Everything Is Under Control Made in Tau Ceti IV Novice Programmer Part-time Mechanic Storm Trooper Challenges ------------ None Game ------ Seed FieldAnalysisSuperbattery Manual? 0 Play Time 00:37:50 Cumulative 2.0 hours Start 2020.11.03 @ 19:57:10 End 2020.11.03 @ 20:38:20 Sessions 1 Manual Loads 0 Difficulty Rogue Special Mode None Game No. 5 Rogue 1 Adventurer 4 Explorer 0 Win Type - Total 0 Types 0/0/0/0/0/0/0/0/0 Lore% 1 Gallery% 4 Achievement% 5 Wizard Run 0 Options --------- ASCII 0 Keyboard 0 Movement Mouse Keybinds 0 Fullscreen 2 Font 18/CogWide Map View 76x50 Tactical HUD 0 Map Filters NONE Filters NONE Steam 1 RUN: fa457a20-1c60-47ca-b462-fbd232fc78eb